[Event "Late-Titled-Tuesday-Blitz-September-26-2023"]
[Site "Chess.com"]
[Date "2023.09.26"]
[Round "2"]
[White "PNEPaul"]
[Black "Colombiano07"]
[Result "1-0"]
[WhiteElo "1950"]
[BlackElo "2397"]
[TimeControl "180+1"]
[EndTime "14:13:24 PDT"]
[Termination "PNEPaul won by resignation"]

1. e4 {[%clk 0:03:00.9]} 1... c6 {[%clk 0:02:59.8]} 2. d4 {[%clk 0:03:00.8]}
2... d5 {[%clk 0:03:00.7]} 3. exd5 {[%clk 0:02:58.3]} 3... cxd5 {[%clk
0:03:01.6]} 4. c4 {[%clk 0:02:58.3]} 4... Nf6 {[%clk 0:03:01.2]} 5. Nc3 {[%clk
0:02:58.4]} 5... Nc6 {[%clk 0:03:01.9]} 6. Nf3 {[%clk 0:02:58.6]} 6... Bg4
{[%clk 0:03:02.6]} 7. Be2 {[%clk 0:02:58.7]} 7... e6 {[%clk 0:03:02.4]} 8. O-O
{[%clk 0:02:58.6]} 8... Be7 {[%clk 0:03:02.7]} 9. c5 {[%clk 0:02:58.8]} 9... O-O
{[%clk 0:03:02.5]} 10. a3 {[%clk 0:02:57.7]} 10... Ne4 {[%clk 0:03:03]} 11. Na4
{[%clk 0:02:48.5]} 11... Bf6 {[%clk 0:02:59]} 12. Be3 {[%clk 0:02:46.9]} 12...
Re8 {[%clk 0:02:50.1]} 13. b4 {[%clk 0:02:45.8]} 13... e5 {[%clk 0:02:50]} 14.
dxe5 {[%clk 0:02:38]} 14... Nxe5 {[%clk 0:02:50.7]} 15. Nxe5 {[%clk 0:02:35.3]}
15... Bxe2 {[%clk 0:02:51.6]} 16. Qxe2 {[%clk 0:02:33.3]} 16... Bxe5 {[%clk
0:02:51.2]} 17. Rad1 {[%clk 0:02:16.5]} 17... Qd7 {[%clk 0:02:45.1]} 18. b5
{[%clk 0:02:14.3]} 18... a6 {[%clk 0:02:43.5]} 19. Nb6 {[%clk 0:02:10]} 19...
Qxb5 {[%clk 0:02:39]} 20. Qxb5 {[%clk 0:02:08.6]} 20... axb5 {[%clk 0:02:39.9]}
21. Nxa8 {[%clk 0:02:08.3]} 21... Rxa8 {[%clk 0:02:40.6]} 22. Rxd5 {[%clk
0:02:07.6]} 22... Bf6 {[%clk 0:02:38]} 23. Rd7 {[%clk 0:02:01.9]} 23... Rxa3
{[%clk 0:02:29]} 24. Rxb7 {[%clk 0:02:01.8]} 24... h5 {[%clk 0:02:29.4]} 25.
Rxb5 {[%clk 0:01:53.2]} 25... Rc3 {[%clk 0:02:29.6]} 26. Rc1 {[%clk 0:01:49.2]}
1-0

[Event "Late-Titled-Tuesday-Blitz-September-26-2023"]
[Site "Chess.com"]
[Date "2023.09.26"]
[Round "2"]
[White "reevecanada"]
[Black "YellowJacek"]
[Result "1-0"]
[WhiteElo "2510"]
[BlackElo "2326"]
[TimeControl "180+1"]
[EndTime "14:13:56 PDT"]
[Termination "reevecanada won by resignation"]

1. e4 {[%clk 0:03:00.9]} 1... c5 {[%clk 0:02:56.4]} 2. Nf3 {[%clk 0:03:00]} 2...
d6 {[%clk 0:02:56.3]} 3. Bb5+ {[%clk 0:02:57.9]} 3... Bd7 {[%clk 0:02:53.8]} 4.
Bxd7+ {[%clk 0:02:56.7]} 4... Qxd7 {[%clk 0:02:53.6]} 5. O-O {[%clk 0:02:55.5]}
5... Nf6 {[%clk 0:02:53.1]} 6. Re1 {[%clk 0:02:55.1]} 6... e6 {[%clk 0:02:52.9]}
7. c3 {[%clk 0:02:55.6]} 7... d5 {[%clk 0:02:53.1]} 8. e5 {[%clk 0:02:54.5]}
8... Ng8 {[%clk 0:02:48.3]} 9. d4 {[%clk 0:02:54.2]} 9... Nc6 {[%clk 0:02:48]}
10. h4 {[%clk 0:02:53.6]} 10... Nge7 {[%clk 0:02:47.8]} 11. h5 {[%clk
0:02:53.5]} 11... h6 {[%clk 0:02:44.9]} 12. Na3 {[%clk 0:02:52.9]} 12... a6
{[%clk 0:02:41.3]} 13. dxc5 {[%clk 0:02:50]} 13... Nc8 {[%clk 0:02:29.4]} 14. b4
{[%clk 0:02:48.3]} 14... b6 {[%clk 0:02:10.1]} 15. cxb6 {[%clk 0:02:43.9]} 15...
Nxb6 {[%clk 0:02:11]} 16. Nd4 {[%clk 0:02:43.4]} 16... Nxd4 {[%clk 0:02:04.4]}
17. Qxd4 {[%clk 0:02:42.4]} 17... Qc7 {[%clk 0:02:01.4]} 18. Be3 {[%clk
0:02:38.4]} 18... Nd7 {[%clk 0:02:00.1]} 19. f4 {[%clk 0:02:34.4]} 19... Be7
{[%clk 0:01:55.9]} 20. Rec1 {[%clk 0:02:34]} 20... O-O {[%clk 0:01:50.3]} 21. c4
{[%clk 0:02:33.2]} 21... dxc4 {[%clk 0:01:32.7]} 22. Nxc4 {[%clk 0:02:32.4]}
22... Rfd8 {[%clk 0:01:28.3]} 23. Nd6 {[%clk 0:02:29.4]} 1-0

[Event "Late-Titled-Tuesday-Blitz-September-26-2023"]
[Site "Chess.com"]
[Date "2023.09.26"]
[Round "2"]
[White "JoshWeinstein"]
[Black "DefiantChair"]
[Result "0-1"]
[WhiteElo "2342"]
[BlackElo "2551"]
[TimeControl "180+1"]
[EndTime "14:14:16 PDT"]
[Termination "DefiantChair won by resignation"]

1. e4 {[%clk 0:03:00.9]} 1... c5 {[%clk 0:02:59.3]} 2. Nc3 {[%clk 0:03:01.1]}
2... d6 {[%clk 0:02:59.7]} 3. Bc4 {[%clk 0:02:58.2]} 3... Nc6 {[%clk 0:02:56.6]}
4. f4 {[%clk 0:02:57.8]} 4... g6 {[%clk 0:02:57]} 5. d3 {[%clk 0:02:49]} 5...
Bg7 {[%clk 0:02:56.7]} 6. Nf3 {[%clk 0:02:49.2]} 6... e6 {[%clk 0:02:56.8]} 7.
O-O {[%clk 0:02:48.9]} 7... Nge7 {[%clk 0:02:56.3]} 8. Bb3 {[%clk 0:02:49.1]}
8... Nd4 {[%clk 0:02:50]} 9. Ne2 {[%clk 0:02:47.8]} 9... O-O {[%clk 0:02:48.7]}
10. c3 {[%clk 0:02:47.8]} 10... Nxb3 {[%clk 0:02:45]} 11. axb3 {[%clk
0:02:48.7]} 11... d5 {[%clk 0:02:44.6]} 12. e5 {[%clk 0:02:47.8]} 12... d4
{[%clk 0:02:29]} 13. cxd4 {[%clk 0:02:41.6]} 13... cxd4 {[%clk 0:02:29.9]} 14.
Nexd4 {[%clk 0:02:42.1]} 14... b6 {[%clk 0:02:29.8]} 15. Be3 {[%clk 0:02:33.4]}
15... Bb7 {[%clk 0:02:26]} 16. Nb5 {[%clk 0:02:30.4]} 16... Nf5 {[%clk
0:02:23.2]} 17. Bf2 {[%clk 0:02:25.8]} 17... Qd5 {[%clk 0:02:22.5]} 18. Nc3
{[%clk 0:02:24.1]} 18... Qd7 {[%clk 0:02:22.5]} 19. d4 {[%clk 0:02:18]} 19...
Rfd8 {[%clk 0:02:18.9]} 20. Ne2 {[%clk 0:02:14]} 20... a6 {[%clk 0:02:00.3]} 21.
Qd3 {[%clk 0:02:10.5]} 21... a5 {[%clk 0:01:58.7]} 22. Rfd1 {[%clk 0:02:07.8]}
22... Qd5 {[%clk 0:01:56.2]} 23. Nc3 {[%clk 0:02:02.9]} 23... Qxb3 {[%clk
0:01:55.7]} 24. g4 {[%clk 0:01:58.5]} 24... Ne7 {[%clk 0:01:48.7]} 25. Ng5
{[%clk 0:01:55.6]} 25... Nd5 {[%clk 0:01:42.2]} 26. Nxd5 {[%clk 0:01:51.4]}
26... Qxd5 {[%clk 0:01:40.6]} 27. Kf1 {[%clk 0:01:50.1]} 27... Ba6 {[%clk
0:01:40.5]} 0-1

[Event "Late-Titled-Tuesday-Blitz-September-26-2023"]
[Site "Chess.com"]
[Date "2023.09.26"]
[Round "2"]
[White "PedroGil25"]
[Black "ozates"]
[Result "0-1"]
[WhiteElo "2332"]
[BlackElo "2546"]
[TimeControl "180+1"]
[EndTime "14:14:24 PDT"]
[Termination "ozates won by resignation"]

1. e4 {[%clk 0:03:00.9]} 1... e5 {[%clk 0:02:48.4]} 2. Nf3 {[%clk 0:02:57.3]}
2... Nc6 {[%clk 0:02:48.4]} 3. Nc3 {[%clk 0:02:57.6]} 3... g6 {[%clk 0:02:49]}
4. d4 {[%clk 0:02:47.6]} 4... exd4 {[%clk 0:02:49.9]} 5. Nd5 {[%clk 0:02:46.6]}
5... h6 {[%clk 0:02:44.8]} 6. Nxd4 {[%clk 0:02:40.2]} 6... a6 {[%clk 0:02:44.9]}
7. Be3 {[%clk 0:02:36.4]} 7... Bg7 {[%clk 0:02:44.3]} 8. Be2 {[%clk 0:02:32.3]}
8... Nf6 {[%clk 0:02:41.3]} 9. Nxf6+ {[%clk 0:02:30.5]} 9... Qxf6 {[%clk
0:02:40.9]} 10. c3 {[%clk 0:02:30.2]} 10... O-O {[%clk 0:02:40.6]} 11. O-O
{[%clk 0:02:27.5]} 11... Re8 {[%clk 0:02:39.2]} 12. Qc2 {[%clk 0:02:26.5]} 12...
d6 {[%clk 0:02:33.6]} 13. Rae1 {[%clk 0:02:24.2]} 13... Bd7 {[%clk 0:02:24.1]}
14. f4 {[%clk 0:02:13.7]} 14... Qe7 {[%clk 0:02:14.7]} 15. Bf3 {[%clk
0:02:07.6]} 15... Nxd4 {[%clk 0:02:04.6]} 16. Bxd4 {[%clk 0:02:08.5]} 16... c5
{[%clk 0:02:02.6]} 17. Bxg7 {[%clk 0:02:05.3]} 17... Kxg7 {[%clk 0:02:03.5]} 18.
e5 {[%clk 0:02:01.2]} 18... Bf5 {[%clk 0:02:02.3]} 19. Qb3 {[%clk 0:01:59.7]}
19... Rab8 {[%clk 0:02:01.8]} 20. exd6 {[%clk 0:01:38]} 20... Qxd6 {[%clk
0:02:01.6]} 21. Rxe8 {[%clk 0:01:34.6]} 21... Rxe8 {[%clk 0:02:02.5]} 22. Qxb7
{[%clk 0:01:34.1]} 22... Qxf4 {[%clk 0:01:58.2]} 23. Qxa6 {[%clk 0:01:33.1]}
23... Qe3+ {[%clk 0:01:55.7]} 24. Kh1 {[%clk 0:01:19.8]} 24... Bd3 {[%clk
0:01:56.6]} 0-1

[Event "Late-Titled-Tuesday-Blitz-September-26-2023"]
[Site "Chess.com"]
[Date "2023.09.26"]
[Round "2"]
[White "giomar27"]
[Black "Shuvalov"]
[Result "0-1"]
[WhiteElo "2277"]
[BlackElo "2487"]
[TimeControl "180+1"]
[EndTime "14:14:31 PDT"]
[Termination "Shuvalov won by checkmate"]

1. f3 {[%clk 0:03:00.9]} 1... e5 {[%clk 0:02:58.1]} 2. Nh3 {[%clk 0:03:00.5]}
2... d5 {[%clk 0:02:57.4]} 3. Nf2 {[%clk 0:03:00.5]} 3... Nf6 {[%clk 0:02:56.5]}
4. g3 {[%clk 0:03:01]} 4... c5 {[%clk 0:02:55.1]} 5. Bg2 {[%clk 0:03:01.2]} 5...
Nc6 {[%clk 0:02:55.4]} 6. O-O {[%clk 0:03:01.5]} 6... Bd6 {[%clk 0:02:52]} 7. d3
{[%clk 0:03:01.7]} 7... h5 {[%clk 0:02:49.7]} 8. Nc3 {[%clk 0:02:59.5]} 8... h4
{[%clk 0:02:48.3]} 9. e4 {[%clk 0:02:59.5]} 9... d4 {[%clk 0:02:45.3]} 10. Ne2
{[%clk 0:02:59.5]} 10... hxg3 {[%clk 0:02:42.3]} 11. hxg3 {[%clk 0:02:54.7]}
11... Bd7 {[%clk 0:02:37.6]} 12. f4 {[%clk 0:02:51.6]} 12... Ng4 {[%clk
0:02:35.8]} 13. Nxg4 {[%clk 0:02:45.2]} 13... Bxg4 {[%clk 0:02:35.1]} 14. Qe1
{[%clk 0:02:45.6]} 14... Qd7 {[%clk 0:02:30.7]} 15. Bd2 {[%clk 0:02:44.6]} 15...
O-O-O {[%clk 0:02:27.8]} 16. fxe5 {[%clk 0:02:36.7]} 16... Nxe5 {[%clk
0:02:26.7]} 17. Nf4 {[%clk 0:02:35.9]} 17... Rh7 {[%clk 0:02:18.4]} 18. b4
{[%clk 0:02:28.9]} 18... cxb4 {[%clk 0:02:16]} 19. Bxb4 {[%clk 0:02:26.1]} 19...
Rdh8 {[%clk 0:02:11.8]} 20. Bxd6 {[%clk 0:02:24.9]} 20... Qxd6 {[%clk 0:02:12]}
21. c3 {[%clk 0:02:20.4]} 21... g5 {[%clk 0:02:07.4]} 22. Nd5 {[%clk 0:02:15.9]}
22... Qh6 {[%clk 0:01:54]} 23. Qd2 {[%clk 0:01:58]} 23... Qh2+ {[%clk
0:01:51.7]} 24. Kf2 {[%clk 0:01:58.3]} 24... Qxg2+ {[%clk 0:01:46.4]} 25. Kxg2
{[%clk 0:01:53.3]} 25... Rh2+ {[%clk 0:01:46.3]} 26. Kg1 {[%clk 0:01:53.6]}
26... Rh1+ {[%clk 0:01:27]} 27. Kf2 {[%clk 0:01:53.5]} 27... R8h2+ {[%clk
0:01:26.9]} 28. Ke1 {[%clk 0:01:53]} 28... Rxf1+ {[%clk 0:01:27.1]} 29. Kxf1
{[%clk 0:01:53.1]} 29... Rxd2 {[%clk 0:01:27.2]} 30. cxd4 {[%clk 0:01:53.9]}
30... Bh3+ {[%clk 0:01:26.6]} 31. Ke1 {[%clk 0:01:53.6]} 31... Nf3# {[%clk
0:01:26.4]} 0-1

[Event "Late-Titled-Tuesday-Blitz-September-26-2023"]
[Site "Chess.com"]
[Date "2023.09.26"]
[Round "2"]
[White "ATM622"]
[Black "PassedPawnMustPushed"]
[Result "1-0"]
[WhiteElo "2435"]
[BlackElo "2119"]
[TimeControl "180+1"]
[EndTime "14:14:36 PDT"]
[Termination "ATM622 won by resignation"]

1. d4 {[%clk 0:03:00.9]} 1... Nf6 {[%clk 0:03:00.9]} 2. c4 {[%clk 0:02:58.5]}
2... d6 {[%clk 0:03:01.1]} 3. g3 {[%clk 0:02:58.6]} 3... g6 {[%clk 0:03:01.4]}
4. Bg2 {[%clk 0:02:59.1]} 4... Bg7 {[%clk 0:03:02]} 5. Nf3 {[%clk 0:02:59.6]}
5... c6 {[%clk 0:03:02.5]} 6. O-O {[%clk 0:02:59.9]} 6... O-O {[%clk 0:03:02.2]}
7. Nc3 {[%clk 0:03:00.6]} 7... Nbd7 {[%clk 0:03:02]} 8. e4 {[%clk 0:03:00.8]}
8... e5 {[%clk 0:03:02.2]} 9. d5 {[%clk 0:03:00.9]} 9... Nc5 {[%clk 0:02:48.2]}
10. Qc2 {[%clk 0:02:58.9]} 10... a5 {[%clk 0:02:41.1]} 11. Rd1 {[%clk
0:02:57.5]} 11... Bg4 {[%clk 0:02:37.8]} 12. h3 {[%clk 0:02:55.2]} 12... Bxf3
{[%clk 0:02:37.8]} 13. Bxf3 {[%clk 0:02:53.6]} 13... Ne8 {[%clk 0:02:23]} 14.
Be3 {[%clk 0:02:51]} 14... Qc7 {[%clk 0:02:13.8]} 15. a3 {[%clk 0:02:43.1]}
15... f5 {[%clk 0:02:13.6]} 16. b4 {[%clk 0:02:29.5]} 16... axb4 {[%clk
0:02:14.5]} 17. axb4 {[%clk 0:02:29.2]} 17... Rxa1 {[%clk 0:02:14.6]} 18. Rxa1
{[%clk 0:02:28.6]} 18... fxe4 {[%clk 0:02:11.4]} 19. Nxe4 {[%clk 0:02:21]} 19...
Rxf3 {[%clk 0:01:57.9]} 20. bxc5 {[%clk 0:02:20.1]} 20... cxd5 {[%clk
0:01:57.6]} 21. cxd5 {[%clk 0:02:18]} 21... dxc5 {[%clk 0:01:54.3]} 22. Nxc5
{[%clk 0:02:12.2]} 22... Nd6 {[%clk 0:01:44.4]} 23. Qe2 {[%clk 0:02:02.2]} 23...
e4 {[%clk 0:01:36.4]} 24. Ra8+ {[%clk 0:01:49.7]} 24... Rf8 {[%clk 0:01:34.5]}
25. Ne6 {[%clk 0:01:43.1]} 1-0

[Event "Late-Titled-Tuesday-Blitz-September-26-2023"]
[Site "Chess.com"]
[Date "2023.09.26"]
[Round "2"]
[White "Fan_Of_Chucky"]
[Black "KVAIDAN"]
[Result "1-0"]
[WhiteElo "2477"]
[BlackElo "2272"]
[TimeControl "180+1"]
[EndTime "14:14:42 PDT"]
[Termination "Fan_Of_Chucky won by resignation"]

1. d4 {[%clk 0:03:00.9]} 1... e6 {[%clk 0:02:57.8]} 2. c4 {[%clk 0:03:01.8]}
2... f5 {[%clk 0:02:58.2]} 3. h3 {[%clk 0:02:56.2]} 3... Nf6 {[%clk 0:02:54.7]}
4. g4 {[%clk 0:02:54.8]} 4... fxg4 {[%clk 0:02:48.7]} 5. hxg4 {[%clk 0:02:55.7]}
5... Nxg4 {[%clk 0:02:48.7]} 6. Qd3 {[%clk 0:02:53.5]} 6... Nf6 {[%clk
0:02:44.4]} 7. Bg5 {[%clk 0:02:51]} 7... Nc6 {[%clk 0:02:41.4]} 8. Nc3 {[%clk
0:02:47.6]} 8... Bb4 {[%clk 0:02:37.7]} 9. Nf3 {[%clk 0:02:43.6]} 9... Qe7
{[%clk 0:02:34.1]} 10. Ne5 {[%clk 0:02:28.9]} 10... Bxc3+ {[%clk 0:02:26.1]} 11.
bxc3 {[%clk 0:02:16.8]} 11... Qa3 {[%clk 0:02:25]} 12. Rxh7 {[%clk 0:01:38.1]}
12... Rf8 {[%clk 0:01:57.3]} 13. Qg6+ {[%clk 0:01:37.4]} 13... Kd8 {[%clk
0:01:56.6]} 14. Rc1 {[%clk 0:01:22.7]} 14... Qe7 {[%clk 0:01:42.1]} 15. Rxg7
{[%clk 0:01:21.4]} 15... Nxe5 {[%clk 0:01:37.2]} 16. dxe5 {[%clk 0:01:19.5]}
16... Ng8 {[%clk 0:01:28.5]} 17. Rxg8 {[%clk 0:01:12]} 1-0

[Event "Late-Titled-Tuesday-Blitz-September-26-2023"]
[Site "Chess.com"]
[Date "2023.09.26"]
[Round "2"]
[White "rikchessmx"]
[Black "NigelDwarf"]
[Result "1-0"]
[WhiteElo "2365"]
[BlackElo "2538"]
[TimeControl "180+1"]
[EndTime "14:14:55 PDT"]
[Termination "rikchessmx won by checkmate"]

1. e4 {[%clk 0:02:45.3]} 1... c5 {[%clk 0:02:58.1]} 2. Nf3 {[%clk 0:02:44.6]}
2... d6 {[%clk 0:02:58.4]} 3. d4 {[%clk 0:02:44.7]} 3... Nf6 {[%clk 0:02:59]} 4.
Nc3 {[%clk 0:02:43.9]} 4... cxd4 {[%clk 0:02:59.4]} 5. Nxd4 {[%clk 0:02:43.5]}
5... a6 {[%clk 0:02:59.9]} 6. f4 {[%clk 0:02:43.6]} 6... e5 {[%clk 0:02:59.1]}
7. Nf3 {[%clk 0:02:43.4]} 7... Nbd7 {[%clk 0:02:58.8]} 8. Bd3 {[%clk 0:02:43.5]}
8... Be7 {[%clk 0:02:57.3]} 9. O-O {[%clk 0:02:28]} 9... b5 {[%clk 0:02:51.4]}
10. a3 {[%clk 0:02:27.3]} 10... Bb7 {[%clk 0:02:50]} 11. Kh1 {[%clk 0:02:27.9]}
11... Rc8 {[%clk 0:02:48.3]} 12. Qe1 {[%clk 0:02:27.7]} 12... O-O {[%clk
0:02:46.4]} 13. fxe5 {[%clk 0:02:27.3]} 13... Nxe5 {[%clk 0:02:42]} 14. Nd4
{[%clk 0:02:26.9]} 14... Re8 {[%clk 0:02:37.6]} 15. Nf5 {[%clk 0:02:26.1]} 15...
Bf8 {[%clk 0:02:15.1]} 16. Bg5 {[%clk 0:02:24.9]} 16... d5 {[%clk 0:02:10.7]}
17. Qg3 {[%clk 0:02:21.7]} 17... Ng6 {[%clk 0:01:50.3]} 18. exd5 {[%clk
0:02:15.7]} 18... Rxc3 {[%clk 0:01:40.5]} 19. bxc3 {[%clk 0:02:12.3]} 19... Bxd5
{[%clk 0:01:40.1]} 20. Nh6+ {[%clk 0:02:11.8]} 20... Kh8 {[%clk 0:01:38.8]} 21.
Bxf6 {[%clk 0:02:11.7]} 21... gxf6 {[%clk 0:01:37.2]} 22. Nf5 {[%clk 0:02:08.5]}
22... Bc5 {[%clk 0:01:32.4]} 23. a4 {[%clk 0:02:04.7]} 23... Rg8 {[%clk
0:01:28.5]} 24. Nh6 {[%clk 0:02:01.6]} 24... Nh4 {[%clk 0:01:01.5]} 25. Nxf7+
{[%clk 0:01:46.9]} 25... Bxf7 {[%clk 0:00:59]} 26. Qxh4 {[%clk 0:01:47.2]} 26...
Bd5 {[%clk 0:00:59.5]} 27. Qxh7# {[%clk 0:01:45]} 1-0

[Event "Late-Titled-Tuesday-Blitz-September-26-2023"]
[Site "Chess.com"]
[Date "2023.09.26"]
[Round "2"]
[White "Francisco_Ferrari"]
[Black "Agibileg"]
[Result "0-1"]
[WhiteElo "2385"]
[BlackElo "2685"]
[TimeControl "180+1"]
[EndTime "14:14:56 PDT"]
[Termination "Agibileg won by resignation"]

1. e4 {[%clk 0:03:00.9]} 1... e5 {[%clk 0:02:59.4]} 2. Nf3 {[%clk 0:02:54.8]}
2... Nc6 {[%clk 0:02:59.8]} 3. Bc4 {[%clk 0:02:52.4]} 3... Nf6 {[%clk
0:02:59.7]} 4. d3 {[%clk 0:02:52.2]} 4... Bc5 {[%clk 0:02:59.7]} 5. c3 {[%clk
0:02:51.2]} 5... d6 {[%clk 0:02:59.7]} 6. Nbd2 {[%clk 0:02:48.1]} 6... a5 {[%clk
0:02:59.7]} 7. a4 {[%clk 0:02:45.8]} 7... Ba7 {[%clk 0:02:59.9]} 8. O-O {[%clk
0:02:34.9]} 8... O-O {[%clk 0:03:00.2]} 9. h3 {[%clk 0:02:32.9]} 9... Be6 {[%clk
0:03:00.5]} 10. Re1 {[%clk 0:02:32]} 10... h6 {[%clk 0:02:54.3]} 11. Bxe6 {[%clk
0:02:20.7]} 11... fxe6 {[%clk 0:02:54.1]} 12. Qb3 {[%clk 0:02:21.2]} 12... Qc8
{[%clk 0:02:52.3]} 13. Qd1 {[%clk 0:02:19.4]} 13... Nh5 {[%clk 0:02:43.2]} 14.
Nf1 {[%clk 0:02:00.7]} 14... Qe8 {[%clk 0:02:29.8]} 15. Be3 {[%clk 0:01:55.4]}
15... Bxe3 {[%clk 0:02:26.8]} 16. Nxe3 {[%clk 0:01:56.3]} 16... Nf4 {[%clk
0:02:24]} 17. d4 {[%clk 0:01:48.9]} 17... exd4 {[%clk 0:02:06]} 18. cxd4 {[%clk
0:01:49.8]} 18... Qg6 {[%clk 0:02:06]} 19. Kh2 {[%clk 0:01:27.1]} 19... Qxe4
{[%clk 0:01:57]} 20. Qb3 {[%clk 0:01:27.4]} 20... Nb4 {[%clk 0:01:37.4]} 21.
Rac1 {[%clk 0:01:17.3]} 21... Nfd3 {[%clk 0:01:29.3]} 0-1

[Event "Late-Titled-Tuesday-Blitz-September-26-2023"]
[Site "Chess.com"]
[Date "2023.09.26"]
[Round "2"]
[White "AlexandraBotez"]
[Black "Cambek64"]
[Result "0-1"]
[WhiteElo "2239"]
[BlackElo "2464"]
[TimeControl "180+1"]
[EndTime "14:15:00 PDT"]
[Termination "Cambek64 won by resignation"]

1. d4 {[%clk 0:03:00.9]} 1... c5 {[%clk 0:02:58.9]} 2. d5 {[%clk 0:03:01.2]}
2... e5 {[%clk 0:02:58.7]} 3. c4 {[%clk 0:02:59.6]} 3... d6 {[%clk 0:02:59.2]}
4. Nc3 {[%clk 0:02:59.8]} 4... Nf6 {[%clk 0:02:59.7]} 5. e4 {[%clk 0:03:00]}
5... Be7 {[%clk 0:03:00.3]} 6. f3 {[%clk 0:03:00.1]} 6... O-O {[%clk 0:03:00.9]}
7. Be3 {[%clk 0:03:00.1]} 7... Ne8 {[%clk 0:03:01.4]} 8. g4 {[%clk 0:02:59.7]}
8... Bh4+ {[%clk 0:02:58.3]} 9. Bf2 {[%clk 0:02:58.7]} 9... Bxf2+ {[%clk
0:02:58]} 10. Kxf2 {[%clk 0:02:59.6]} 10... g6 {[%clk 0:02:55.7]} 11. h4 {[%clk
0:02:57.6]} 11... f5 {[%clk 0:02:56.1]} 12. gxf5 {[%clk 0:02:57.6]} 12... gxf5
{[%clk 0:02:55.7]} 13. Bd3 {[%clk 0:02:50.8]} 13... f4 {[%clk 0:02:54]} 14. Nge2
{[%clk 0:02:26.5]} 14... Nf6 {[%clk 0:02:53.4]} 15. h5 {[%clk 0:02:23.7]} 15...
Kh8 {[%clk 0:02:51.8]} 16. Qg1 {[%clk 0:02:23.2]} 16... Rg8 {[%clk 0:02:49.8]}
17. Qh2 {[%clk 0:02:23.5]} 17... Bd7 {[%clk 0:02:43.9]} 18. Rag1 {[%clk
0:02:22.6]} 18... Na6 {[%clk 0:02:29.5]} 19. Qh4 {[%clk 0:02:05.6]} 19... Rxg1
{[%clk 0:02:21.8]} 20. Nxg1 {[%clk 0:02:04.4]} 20... Qe7 {[%clk 0:02:20.3]} 21.
a3 {[%clk 0:02:00.4]} 21... Rg8 {[%clk 0:02:20.4]} 22. Nge2 {[%clk 0:01:58.8]}
22... Nc7 {[%clk 0:02:17.1]} 23. b4 {[%clk 0:01:43.8]} 23... Na6 {[%clk
0:02:08.2]} 24. b5 {[%clk 0:01:43.4]} 24... Nc7 {[%clk 0:02:08.5]} 25. h6 {[%clk
0:01:43.4]} 25... Rg6 {[%clk 0:02:07.4]} 26. a4 {[%clk 0:01:23.6]} 26... Nce8
{[%clk 0:01:50.2]} 27. a5 {[%clk 0:01:20.6]} 27... Qd8 {[%clk 0:01:43.3]} 28.
Ra1 {[%clk 0:01:12.4]} 28... Nxe4+ {[%clk 0:01:39.2]} 29. Bxe4 {[%clk
0:01:11.2]} 29... Qxh4+ {[%clk 0:01:38.2]} 0-1

[Event "Late-Titled-Tuesday-Blitz-September-26-2023"]
[Site "Chess.com"]
[Date "2023.09.26"]
[Round "2"]
[White "wadsy27"]
[Black "Njal28"]
[Result "0-1"]
[WhiteElo "2638"]
[BlackElo "3091"]
[TimeControl "180+1"]
[EndTime "14:15:06 PDT"]
[Termination "Njal28 won by resignation"]

1. Nf3 {[%clk 0:03:00.9]} 1... Nc6 {[%clk 0:03:00.9]} 2. d4 {[%clk 0:02:59.2]}
2... d6 {[%clk 0:03:01.8]} 3. c4 {[%clk 0:02:58.1]} 3... g6 {[%clk 0:03:02.2]}
4. Nc3 {[%clk 0:02:57]} 4... Bg7 {[%clk 0:03:02.6]} 5. g3 {[%clk 0:02:56.5]}
5... h5 {[%clk 0:03:02.7]} 6. h4 {[%clk 0:02:52.9]} 6... Nf6 {[%clk 0:03:02.1]}
7. Bg2 {[%clk 0:02:52.7]} 7... O-O {[%clk 0:03:02.5]} 8. d5 {[%clk 0:02:49.4]}
8... Na5 {[%clk 0:03:01.6]} 9. b3 {[%clk 0:02:48.7]} 9... c5 {[%clk 0:02:59.3]}
10. Bb2 {[%clk 0:02:48.1]} 10... a6 {[%clk 0:02:59.6]} 11. O-O {[%clk
0:02:47.2]} 11... Rb8 {[%clk 0:02:59.8]} 12. Nd2 {[%clk 0:02:47.2]} 12... b5
{[%clk 0:02:58.2]} 13. Qc1 {[%clk 0:02:46.6]} 13... Ng4 {[%clk 0:02:57.1]} 14.
Rb1 {[%clk 0:02:37.5]} 14... Bf5 {[%clk 0:02:55.3]} 15. e4 {[%clk 0:02:37.1]}
15... Bd7 {[%clk 0:02:56]} 16. Nd1 {[%clk 0:02:36.6]} 16... Ne5 {[%clk
0:02:53.4]} 17. Qc2 {[%clk 0:02:28.1]} 17... bxc4 {[%clk 0:02:53.8]} 18. bxc4
{[%clk 0:02:23.7]} 18... Rb4 {[%clk 0:02:49.2]} 19. Ne3 {[%clk 0:02:05.4]} 19...
Ba4 {[%clk 0:02:45.9]} 20. Qc3 {[%clk 0:02:02.4]} 20... Rxb2 {[%clk 0:02:34.8]}
21. Qxb2 {[%clk 0:01:57.9]} 21... Nf3+ {[%clk 0:02:35.3]} 22. Bxf3 {[%clk
0:01:56.7]} 22... Bxb2 {[%clk 0:02:36.2]} 23. Rxb2 {[%clk 0:01:56.8]} 23... Bd7
{[%clk 0:02:26.9]} 24. Rfb1 {[%clk 0:01:46.9]} 24... e6 {[%clk 0:02:26.4]} 25.
Bg2 {[%clk 0:01:14.1]} 25... e5 {[%clk 0:02:20.6]} 26. Nf3 {[%clk 0:01:10.3]}
26... Kg7 {[%clk 0:02:14.2]} 27. Ng5 {[%clk 0:01:08.8]} 27... Qc7 {[%clk
0:02:11.7]} 28. Bf1 {[%clk 0:00:51.7]} 28... Ra8 {[%clk 0:02:07.8]} 29. Rb3
{[%clk 0:00:33]} 29... Nxb3 {[%clk 0:02:07.2]} 0-1